bitfinex-derivatives/quotes_ETHF0:USTF0_20250504
["timestamp","ask_amount","ask_price","bid_price","bid_amount"]
[1746367151227,6.43815,1825.8,1825.7,5.037005]
[1746367151434,6.43815,1825.8,1825.1,0.44407644]
[1746367151435,2.73883,1825.6,1824.9,1.09586]
[1746367151632,1.09565,1825.3,1825.2,5.037005]
[1746367151932,4.30345,1825.3,1825.2,5.037005]
[1746367152135,7.99145,1825.3,1825.2,5.037005]
[1746367152534,9.69225,1825.3,1825.2,5.037005]
[1746367153736,8.5966,1825.3,1824.9,41.665]
[1746367153934,4.30357,1825.1,1825.0,2.4338]
[1746367154135,7.99157,1825.1,1825.0,2.4338]
[1746367154325,9.68177,1825.1,1825.0,7.470805]
[1746367157936,6.47397,1825.1,1825.0,7.470805]
[1746367158137,9.68177,1825.1,1825.0,7.470805]
[1746367158334,7.99157,1825.1,1825.0,7.470805]
[1746367159238,4.78377,1825.1,1825.0,7.470805]
[1746367160440,7.99157,1825.1,1825.0,7.470805]
[1746367162636,4.78377,1825.1,1825.0,7.470805]
[1746367162836,7.99157,1825.1,1825.0,7.470805]
[1746367163640,4.78377,1825.1,1825.0,7.470805]
[1746367163937,7.99157,1825.1,1825.0,7.470805]
[1746367166042,6.8958,1825.1,1825.0,8.566635]
[1746367166540,3.688,1825.1,1825.0,16.774435]
[1746367168541,3.688,1825.1,1825.0,11.774435]
[1746367173847,3.688,1825.1,1825.0,8.566635]
[1746367174046,3.688,1825.1,1825.0,11.774435]
[1746367176348,3.2078,1825.5,1825.4,1.09559]
[1746367176541,4.7914,1825.5,1825.4,9.692595]
[1746367177040,4.7914,1825.5,1825.4,11.327895]
[1746367177241,8.4794,1825.5,1825.4,11.327895]
[1746367180550,5.2716,1825.5,1825.4,11.327895]
[1746367181551,6.36713,1825.5,1825.4,9.692595]
[1746367181751,7.15793,1825.5,1825.4,9.692595]
[1746367182152,6.0624,1825.5,1825.4,9.692595]
[1746367184153,7.15793,1825.5,1825.4,9.692595]
[1746367184554,6.0624,1825.5,1825.4,9.692595]
[1746367184755,9.2702,1825.5,1825.4,9.692595]
[1746367188360,10.36573,1825.5,1825.4,9.692595]
[1746367188760,9.2702,1825.5,1825.4,9.692595]
[1746367189561,10.36573,1825.5,1825.4,9.692595]
[1746367192560,9.2702,1825.5,1825.4,9.692595]
[1746367193462,6.0624,1825.5,1825.4,9.692595]
[1746367193665,9.2702,1825.5,1825.4,9.692595]
[1746367194463,10.36573,1825.5,1825.4,9.692595]
[1746367197569,9.2702,1825.5,1825.4,9.692595]
[1746367197765,6.0624,1825.5,1825.4,9.692595]
[1746367199167,7.15793,1825.5,1825.4,9.692595]
[1746367199369,6.0624,1825.5,1825.4,9.692595]
[1746367200467,6.0624,1825.5,1825.4,4.65559]
[1746367200766,7.15793,1825.5,1825.4,3.56]
[1746367201567,10.36573,1825.5,1825.4,3.56]
[1746367203261,10.36573,1825.5,1825.4,4.65559]
[1746367203568,9.2702,1825.5,1825.4,4.65559]
[1746367203767,6.0624,1825.5,1825.4,4.65559]
[1746367204469,7.15793,1825.5,1825.4,4.65559]
[1746367204669,7.15793,1825.5,1825.4,3.56]
[1746367205065,7.15793,1825.5,1825.4,4.65559]
[1746367205575,7.15793,1825.5,1825.4,3.56]
[1746367206169,7.15793,1825.5,1825.4,4.65559]
[1746367206870,7.15793,1825.5,1825.4,3.56]
[1746367208472,7.15793,1825.5,1825.4,4.65559]
[1746367208770,6.0624,1825.5,1825.4,4.65559]
[1746367209475,7.15793,1825.5,1825.4,4.65559]
[1746367210168,6.0624,1825.5,1825.4,4.65559]
[1746367211575,7.15793,1825.5,1825.4,4.65559]
[1746367212076,6.0624,1825.5,1825.4,4.65559]
[1746367216180,12.25168496,1825.5,1825.4,5.46619]
[1746367216680,13.34721496,1825.5,1825.4,5.46619]
[1746367218683,12.25168496,1825.5,1825.4,5.46619]
[1746367218981,11.46088496,1825.5,1825.4,5.46619]
[1746367219178,11.46088496,1825.5,1825.4,6.28049]
[1746367227388,11.46088496,1825.5,1825.4,11.317495]
[1746367229591,12.29768496,1825.5,1825.4,11.317495]
[1746367232094,6.80691838,1825.5,1825.4,11.317495]
[1746367236894,4.38651838,1825.5,1825.4,14.525295]
[1746367237094,4.38651838,1825.5,1825.4,11.317495]
[1746367237895,6.78721838,1825.5,1825.4,11.317495]
[1746367238498,12.28558727,1825.5,1825.4,11.317495]
[1746367245800,15.25244904,1825.5,1825.4,11.317495]
[1746367245998,7.35338015,1825.5,1825.4,11.317495]
[1746367247601,7.35338015,1825.5,1825.4,14.525295]
[1746367252005,3.688,1825.5,1825.4,14.525295]
[1746367253609,3.688,1825.5,1825.4,11.317495]
[1746367259218,1.09562,1825.4,1825.2,0.8382]
[1746367259513,0.7989,1825.3,1825.2,6.132685]
[1746367259811,5.10235,1825.3,1825.2,3.551]
[1746367260409,1.09573,1825.2,1825.0,56.96782]
[1746367260602,2.80923,1825.2,1825.1,3.551]
[1746367260805,1.7135,1825.2,1825.1,3.551]
[1746367261215,6.49721,1825.2,1825.1,3.551]
[1746367261920,5.4015,1825.2,1825.1,4.64677]
[1746367262414,5.4015,1825.2,1825.1,3.551]
[1746367263317,5.4015,1825.2,1825.1,4.64677]
[1746367264215,11.59847912,1825.2,1825.1,4.64677]
[1746367264522,11.59847912,1825.2,1825.1,3.551]
[1746367264721,12.69418912,1825.2,1825.1,3.551]
[1746367265818,11.59847912,1825.2,1825.1,3.551]
[1746367266219,12.69418912,1825.2,1825.1,3.551]
[1746367267524,16.35164011,1825.2,1825.1,3.551]
[1746367268614,16.35164011,1825.2,1825.0,60.51479]
[1746367268812,1.6925,1825.1,1825.0,60.51479]
[1746367269119,5.3805,1825.1,1825.0,60.51479]
[1746367269719,8.5883,1825.1,1825.0,59.419]
[1746367269918,8.5883,1825.1,1825.0,3.547]
[1746367271020,9.68407,1825.1,1825.0,3.547]
[1746367272422,8.5883,1825.1,1825.0,3.547]
[1746367272814,8.5883,1825.1,1825.0,4.64283]
[1746367273015,8.5883,1825.1,1825.0,3.547]
[1746367273914,9.4562,1825.1,1825.0,3.547]
[1746367274116,9.4562,1825.1,1825.0,4.64283]
[1746367274512,6.2484,1825.1,1825.0,4.64283]
[1746367274718,5.3805,1825.1,1825.0,7.22323]
[1746367274920,3.688,1825.1,1825.0,12.260235]
[1746367275316,3.688,1825.1,1825.0,17.260235]
[1746367276126,3.65745099,1825.2,1825.1,1.09577]
[1746367276424,3.65745099,1825.2,1825.1,7.855775]
[1746367276722,3.65745099,1825.2,1825.1,12.855775]
[1746367277127,1.6567,1825.6,1825.5,1.09553]
[1746367277425,1.6567,1825.6,1825.5,9.679535]
[1746367278124,5.3447,1825.6,1825.5,9.679535]
[1746367278828,5.3447,1825.6,1825.5,12.213935]
[1746367279328,5.3447,1825.6,1825.5,9.679535]
[1746367281814,5.3447,1825.6,1825.5,3.547]
[1746367281815,9.64797,1825.6,1825.5,3.547]
[1746367282423,13.5525,1825.6,1825.2,0.8694]
[1746367282616,4.30343,1825.4,1825.3,3.547]
[1746367282823,1.09577,1825.1,1825.0,3.547]
[1746367283029,4.30355,1825.2,1825.0,3.547]
[1746367283325,1.6083,1825.1,1825.0,3.547]
[1746367283826,1.6083,1825.1,1825.0,4.64283]
[1746367284328,5.2963,1825.1,1825.0,4.64283]
[1746367285427,6.39209,1825.1,1825.0,3.547]
[1746367287833,6.39209,1825.1,1825.0,4.64283]
[1746367288132,6.39209,1825.1,1825.0,3.547]
[1746367288823,1.09583,1825.0,1824.9,1.09587]
[1746367289024,6.79483,1825.0,1824.9,1.09587]
[1746367289224,1.09589,1824.9,1824.8,3.547]
[1746367289429,3.64519,1824.9,1824.8,3.547]
[1746367290231,7.33319,1824.9,1824.8,3.547]
[1746367290732,7.33319,1824.9,1824.8,4.64295]
[1746367291231,6.2373,1824.9,1824.8,4.64295]
[1746367291530,7.33319,1824.9,1824.8,3.547]
[1746367309246,7.33319,1824.9,1824.8,4.3494]
[1746367310956,6.46329,1824.9,1824.8,10.482355]
[1746367311154,4.78389,1824.9,1824.8,10.482355]
[1746367312056,3.688,1824.9,1824.8,10.482355]
[1746367312458,3.688,1824.9,1824.8,12.206755]
[1746367312658,4.78389,1824.9,1824.8,12.206755]
[1746367313358,4.78389,1824.9,1824.8,11.110805]
[1746367314053,6.46609,1824.9,1824.8,11.110805]
[1746367315958,6.46609,1824.9,1824.8,4.3494]
[1746367316260,7.29889,1824.9,1824.8,4.3494]
[1746367317261,7.29889,1824.9,1824.8,3.547]
[1746367319363,6.46609,1824.9,1824.8,9.679955]
[1746367319551,6.46609,1824.9,1824.8,11.334655]
[1746367320464,4.78389,1824.9,1824.8,11.334655]
[1746367320765,3.688,1824.9,1824.8,10.238705]
[1746367320965,3.688,1824.9,1824.8,11.334655]
[1746367323069,3.688,1824.9,1824.8,19.542455]
[1746367323972,3.65745099,1825.2,1825.1,1.09577]
[1746367324170,3.65745099,1825.2,1825.1,9.676775]
[1746367324363,3.65745099,1825.2,1825.1,14.676775]
[1746367324563,3.65745099,1825.2,1825.1,17.160775]
[1746367325165,7.34545099,1825.2,1825.1,17.160775]
[1746367325772,7.34545099,1825.2,1825.1,12.160775]
[1746367326872,7.34545099,1825.2,1825.1,13.026275]
[1746367328373,3.688,1825.2,1825.1,13.026275]
[1746367329573,3.688,1825.2,1825.1,9.482275]
[1746367329872,3.688,1825.2,1825.1,13.021275]
[1746367333680,3.688,1825.2,1825.1,4.63477]
[1746367333973,4.498,1825.2,1825.1,4.63477]
[1746367334174,6.187,1825.2,1825.1,4.63477]
[1746367340681,7.28271,1825.2,1825.1,3.539]
[1746367340974,6.187,1825.2,1824.8,4.30372]
[1746367341177,4.30368,1825.0,1824.9,3.539]
[1746367341479,4.30366,1825.0,1824.9,3.539]
[1746367341681,5.14946,1825.0,1824.9,3.539]
[1746367342079,4.0536,1825.0,1824.9,4.63489]
[1746367342282,7.7416,1825.0,1824.9,4.63489]
[1746367342481,9.4264,1825.0,1824.9,4.63489]
[1746367343383,10.52223,1825.0,1824.9,4.63489]
[1746367343582,9.4264,1825.0,1824.9,4.63489]
[1746367345190,9.4264,1825.0,1824.9,0.44240854]
[1746367347180,10.52223,1825.0,1824.9,0.44240854]
[1746367349086,10.52223,1825.0,1824.8,3.54]
[1746367349087,1.09589,1824.9,1824.8,3.54]
[1746367349283,3.61279,1824.9,1824.8,3.54]
[1746367350191,7.30079,1824.9,1824.8,3.54]
[1746367350385,7.30079,1824.9,1824.8,4.63595]
[1746367351190,6.2049,1824.9,1824.8,4.63595]
[1746367351893,6.2049,1824.9,1824.8,9.672955]
[1746367352693,3.688,1824.9,1824.8,9.672955]
[1746367355594,3.688,1824.9,1824.8,12.880755]
[1746367357884,3.688,1824.9,1824.8,17.880755]
[1746367358200,3.65745099,1825.3,1825.2,1.09571]
[1746367358493,3.65745099,1825.3,1825.2,9.669715]
[1746367358994,6.86525099,1825.4,1825.3,1.09565]
[1746367359182,6.86525099,1825.4,1825.3,7.002555]
[1746367360190,10.55325099,1825.4,1825.3,7.002555]
[1746367361595,12.17335099,1825.4,1825.3,7.002555]
[1746367362390,8.5159,1825.4,1825.3,7.002555]
[1746367362595,5.3081,1825.4,1825.3,7.002555]
[1746367366196,3.688,1825.4,1825.3,7.002555]
[1746367367193,3.688,1825.4,1825.3,6.132655]
[1746367367595,6.1364,1825.4,1825.3,6.132655]
[1746367369198,1.09566,1825.3,1824.8,3.2078]
[1746367369499,3.65736,1825.3,1825.0,5.037005]
[1746367369700,3.65736,1825.3,1825.1,1.09577]
[1746367369900,1.7109,1825.2,1825.1,1.09577]
[1746367370099,5.3989,1825.2,1825.1,1.09577]
[1746367370399,6.49461,1825.2,1825.0,1.09581]
[1746367370697,1.7109,1825.1,1825.0,6.132815]
[1746367370891,1.7109,1825.1,1825.0,1.09581]
[1746367371091,5.3989,1825.1,1825.0,1.09581]
[1746367374402,3.688,1825.1,1825.0,6.132815]
[1746367374703,3.688,1825.1,1825.0,8.624415]
[1746367375592,3.688,1825.1,1825.0,11.832215]
[1746367375796,0.68250881,1825.1,1825.0,16.832215]
[1746367376294,2.3822,1825.5,1825.4,1.09559]
[1746367376495,2.3822,1825.5,1825.4,9.668595]
[1746367377106,6.0702,1825.5,1825.4,9.668595]
[1746367377305,6.0702,1825.5,1825.4,11.336395]
[1746367378305,6.0702,1825.5,1825.4,4.63159]
[1746367378505,6.0702,1825.5,1825.4,3.536]
[1746367379008,7.16573,1825.5,1825.4,3.536]
[1746367379209,12.16573,1825.5,1825.4,3.536]
[1746367379905,11.0702,1825.5,1825.0,1.09579]
[1746367380110,4.30348,1825.3,1825.1,4.63174]
[1746367380309,2.3885,1825.2,1825.1,4.63174]
[1746367380811,3.2584,1825.2,1825.1,4.63174]
[1746367381011,3.2584,1825.2,1825.1,9.668745]
[1746367381308,6.9464,1825.2,1825.1,9.668745]
[1746367381910,6.9464,1825.2,1825.1,11.243045]
[1746367384303,6.9464,1825.2,1825.1,9.668745]
[1746367385015,6.9464,1825.2,1825.1,3.536]
[1746367385612,8.04211,1825.2,1825.1,3.536]
[1746367388015,8.04211,1825.2,1825.1,4.63177]
[1746367388321,8.04211,1825.2,1825.1,1.09577]
[1746367388724,8.04211,1825.2,1825.0,1.09579]
[1746367389024,4.8435,1825.1,1825.0,4.62879]
[1746367389321,8.5315,1825.1,1825.0,4.62879]
[1746367389822,8.5315,1825.1,1825.0,1.09579]
[1746367390023,8.5315,1825.1,1825.0,4.62879]
[1746367391516,9.62727,1825.1,1825.0,4.62879]
[1746367391918,9.62727,1825.1,1825.0,3.533]
[1746367392118,9.62727,1825.1,1824.9,1.09589]
[1746367392119,1.09583,1825.0,1824.9,3.533]
[1746367392319,2.78693,1825.0,1824.9,3.533]
[1746367393120,6.47493,1825.0,1824.9,3.533]
[1746367394525,6.47493,1825.0,1824.9,4.62889]
[1746367394723,5.3791,1825.0,1824.9,4.62889]
[1746367396221,6.47493,1825.0,1824.9,4.62889]
[1746367396428,5.3791,1825.0,1824.9,4.62889]
[1746367397127,6.47493,1825.0,1824.9,4.62889]
[1746367397424,5.3791,1825.0,1824.9,4.62889]
[1746367397726,5.3791,1825.0,1824.9,9.665895]
[1746367398130,3.688,1825.0,1824.9,10.449595]
[1746367399528,3.688,1825.0,1824.9,13.657395]
[1746367399915,3.688,1825.0,1824.9,10.449595]
[1746367404027,3.688,1825.0,1824.9,18.657395]
[1746367404229,3.65212327,1825.3,1825.2,1.09571]
[1746367404420,3.65212327,1825.3,1825.2,9.666715]
[1746367404921,3.65212327,1825.3,1825.2,10.460615]
[1746367405121,7.34012327,1825.3,1825.2,10.460615]
[1746367406125,7.34012327,1825.3,1825.2,15.460615]
[1746367406329,7.34012327,1825.3,1825.2,17.064915]
[1746367406630,7.34012327,1825.3,1825.2,12.064915]
[1746367406826,3.688,1825.3,1825.2,12.064915]
[1746367410033,3.688,1825.3,1825.2,4.62871]
[1746367410230,4.5189,1825.3,1825.2,4.62871]
[1746367410435,4.5189,1825.3,1825.2,9.665715]
[1746367412823,3.688,1825.3,1825.2,9.665715]
[1746367416737,3.688,1825.3,1825.2,11.272615]
[1746367421441,2.57622,1825.3,1825.2,11.272615]
[1746367421640,3.65212327,1825.8,1825.4,2.73893]
[1746367421839,3.65212327,1825.8,1825.7,6.132415]
[1746367422143,7.34012327,1825.8,1825.7,6.132415]
[1746367422344,7.34012327,1825.8,1825.7,7.758115]
[1746367425243,3.688,1825.8,1825.7,7.758115]
[1746367427038,3.688,1825.8,1825.7,8.18741284]
[1746367428033,2.44481,1825.8,1825.7,8.18741284]
[1746367428238,1.15892,1825.8,1825.7,8.18741284]
[1746367430343,1e-05,1825.8,1825.7,8.18741284]
[1746367435350,1e-05,1825.8,1825.7,11.39521284]
[1746367438365,1.6104,1826.1,1825.9,5.037005]
[1746367438653,1.6104,1826.1,1826.0,13.715935]
[1746367439159,5.2984,1826.1,1826.0,12.870035]
[1746367439654,5.2984,1826.1,1826.0,6.132235]
[1746367439855,5.2984,1826.1,1826.0,9.662235]
[1746367446060,5.2984,1826.1,1826.0,4.62523]
[1746367452360,5.2984,1826.1,1826.0,9.662235]
[1746367453260,5.2984,1826.1,1826.0,12.870035]
[1746367454554,5.2984,1826.1,1826.0,14.606235]
[1746367455865,5.2984,1826.1,1826.0,12.870035]
[1746367461466,5.2984,1826.1,1826.0,9.662235]
[1746367468571,5.2984,1826.1,1826.0,11.231135]
[1746367469262,6.9897,1826.1,1826.0,11.231135]
[1746367474776,6.9897,1826.1,1826.0,7.701135]
[1746367474975,6.9897,1826.1,1826.0,11.229135]
[1746367478179,3.688,1826.1,1826.0,11.229135]
[1746367480274,3.688,1826.1,1826.0,7.701135]
[1746367480480,3.688,1826.1,1826.0,11.226135]
[1746367481180,5.25942327,1826.2,1826.1,1.09506]
[1746367481379,1.6073,1826.2,1826.1,10.998565]
[1746367481994,8.13842327,1826.3,1826.2,1.095]
[1746367482197,8.13842327,1826.3,1826.2,7.769205]
[1746367483601,8.13842327,1826.3,1826.2,8.619805]
[1746367483799,7.34012327,1826.3,1826.2,8.619805]
[1746367483998,7.34012327,1826.3,1826.2,9.471005]
[1746367484395,3.688,1826.3,1826.2,9.471005]
[1746367485000,3.688,1826.3,1826.2,6.132005]
[1746367485200,5.4239,1826.3,1826.2,9.657005]
[1746367486096,3.688,1826.3,1826.2,9.657005]
[1746367486305,3.688,1826.3,1826.2,12.095105]
[1746367486493,3.688,1826.3,1826.2,12.959405]
[1746367487200,4.50502327,1826.4,1826.3,1.09494]
[1746367487398,4.50502327,1826.4,1826.3,10.927245]
[1746367487701,3.65212327,1826.4,1826.3,10.927245]
[1746367488388,3.65212327,1826.6,1826.5,1.09482]
[1746367488592,3.65212327,1826.6,1826.5,7.82762]
[1746367488798,3.65212327,1826.6,1826.5,12.864625]
[1746367488999,3.65212327,1826.6,1826.5,14.444725]
[1746367492197,0.7842,1826.8,1826.7,1.0947]
[1746367492396,0.7842,1826.8,1826.7,6.131705]
[1746367493200,4.4722,1826.8,1826.7,6.131705]
[1746367494601,6.2008,1826.8,1826.7,6.131705]
[1746367495891,4.4722,1826.8,1826.7,6.131705]
[1746367496299,4.4722,1826.8,1826.7,9.339505]
[1746367496499,3.688,1826.8,1826.7,9.339505]
[1746367497299,1.7132,1826.9,1826.8,1.09464]
[1746367497502,1.7132,1826.9,1826.8,11.393645]
[1746367498107,5.4012,1826.9,1826.8,11.393645]
[1746367499600,5.4012,1826.9,1826.8,9.656645]
[1746367501700,5.4012,1826.9,1826.8,11.276645]
[1746367502501,5.4012,1826.9,1826.8,12.096545]
[1746367502701,3.688,1826.9,1826.8,12.096545]
[1746367503008,3.688,1826.9,1826.8,12.919345]
[1746367503309,3.688,1826.9,1826.8,12.096545]
[1746367508911,3.688,1826.9,1826.8,12.52306156]
[1746367513119,3.688,1827.1,1827.0,1.09452]
[1746367513316,3.688,1827.1,1827.0,12.861325]
[1746367513517,3.688,1827.1,1827.0,7.82432]
[1746367515419,3.688,1827.1,1827.0,12.861325]
[1746367517122,1.711,1827.2,1827.1,1.09446]
[1746367517316,1.711,1827.2,1827.1,6.131465]
[1746367517619,1.711,1827.2,1827.1,1.09446]
[1746367518316,5.399,1827.2,1827.1,1.09446]
[1746367519712,5.399,1827.2,1827.1,2.76646]
[1746367521123,5.399,1827.2,1827.1,7.803465]
[1746367521324,5.399,1827.2,1827.1,8.665265]
[1746367524023,3.688,1827.2,1827.1,8.665265]
[1746367524716,3.688,1827.2,1827.1,4.61546]
[1746367525116,5.414,1827.2,1827.1,4.61546]
[1746367531526,5.414,1827.2,1827.1,6.23436]
[1746367531832,3.688,1827.2,1827.1,11.271365]
[1746367533630,3.69379225,1827.2,1827.1,11.271365]
[1746367535731,5.37369225,1827.2,1827.1,11.271365]
[1746367537631,5.37369225,1827.2,1827.1,4.61546]
[1746367547047,5.37369225,1827.2,1827.1,1.09446]
[1746367547251,5.37369225,1827.2,1827.1,4.61246]
[1746367547746,5.37369225,1827.2,1827.1,1.09446]
[1746367547947,5.37369225,1827.2,1827.1,4.61246]
[1746367549849,9.02581552,1827.2,1827.1,4.61246]
[1746367553648,9.02581552,1827.2,1827.1,6.29066]
[1746367561153,9.72363875,1827.2,1827.1,6.29066]
[1746367567358,8.04373875,1827.2,1827.1,11.327665]
[1746367567864,8.04373875,1827.2,1827.1,12.162165]
[1746367571864,3.69379225,1827.2,1827.1,12.162165]
[1746367579779,3.69379225,1827.2,1827.1,15.369965]
[1746367587078,3.69379225,1827.2,1827.1,14.535465]
[1746367587285,5.34849225,1827.2,1827.1,14.535465]
[1746367587775,5.34849225,1827.2,1827.1,14.532465]
[1746367589276,5.34849225,1827.2,1827.1,11.017465]
[1746367589479,5.34849225,1827.2,1827.1,4.30226]
[1746367589676,5.34849225,1827.2,1827.1,4.60946]
[1746367590977,5.34849225,1827.2,1827.1,9.646465]
[1746367591475,5.34849225,1827.2,1827.1,14.592365]
[1746367595283,5.34849225,1827.2,1827.1,11.384565]
[1746367595689,5.34849225,1827.2,1827.1,14.592365]
[1746367598086,5.34849225,1827.2,1827.1,7.81726]
[1746367599389,9.00061552,1827.2,1827.1,7.81726]
[1746367601986,9.00061552,1827.2,1827.1,4.60946]
[1746367604084,7.34591552,1827.2,1827.1,9.646465]
[1746367604287,7.34591552,1827.2,1827.1,11.268865]
[1746367604489,7.34591552,1827.2,1827.1,14.476665]
[1746367605689,3.69379225,1827.2,1827.1,14.476665]
[1746367606592,3.69379225,1827.2,1827.1,15.277565]
[1746367609184,0.00579225,1827.2,1827.1,15.277565]
[1746367609793,0.00579225,1827.2,1827.1,14.476665]
[1746367609992,0.85149225,1827.2,1827.1,14.476665]
[1746367610193,4.53949225,1827.2,1827.1,14.476665]
[1746367614794,4.53949225,1827.2,1827.1,10.961665]
[1746367615095,4.53949225,1827.2,1827.1,12.850265]
[1746367615295,4.53949225,1827.2,1827.1,9.339265]
[1746367615491,4.53949225,1827.2,1827.1,7.81326]
[1746367615994,4.5337,1827.2,1827.1,7.81326]
[1746367616596,8.18582327,1827.2,1827.1,3.2078]
[1746367616798,8.18582327,1827.2,1827.1,7.81326]
[1746367617002,9.76592327,1827.2,1827.1,7.81326]
[1746367618397,9.77171552,1827.2,1827.1,7.81326]
[1746367619297,9.77171552,1827.2,1827.1,4.60546]
[1746367625701,6.11959225,1827.2,1827.1,4.60546]
[1746367625902,6.11959225,1827.2,1827.1,3.511]
[1746367626692,6.11959225,1827.2,1827.0,1.09448]
[1746367626895,2.4524,1827.1,1827.0,1.09448]
[1746367627095,6.1404,1827.1,1827.0,4.60648]
[1746367628401,6.1404,1827.1,1826.9,1.09456]
[1746367628602,4.5022,1827.1,1827.0,3.512]
[1746367629204,4.5022,1827.1,1827.0,4.60652]
[1746367631198,4.5022,1827.1,1826.9,1.09456]
[1746367631503,5.59671,1827.1,1827.0,4.60652]
[1746367631704,5.59671,1827.1,1827.0,3.512]
[1746367632197,4.5022,1827.1,1827.0,3.512]
[1746367632398,5.59666,1827.1,1827.0,3.512]
[1746367632593,8.15432327,1827.1,1827.0,3.512]
[1746367632799,9.24882327,1827.1,1827.0,3.512]
[1746367634507,12.45662327,1827.1,1827.0,3.512]
[1746367635607,15.00077724,1827.1,1827.0,3.512]
[1746367636707,15.00077724,1827.1,1827.0,4.60652]
[1746367637606,10.69847724,1827.1,1827.0,9.643525]
[1746367638304,9.88427724,1827.1,1827.0,11.317725]
[1746367639108,6.19627724,1827.1,1827.0,14.525525]
[1746367640098,9.88427724,1827.1,1827.0,14.525525]
[1746367640702,3.688,1827.1,1827.0,14.525525]
[1746367642011,3.688,1827.1,1827.0,19.525525]
[1746367645213,0.00579225,1827.2,1827.1,1.09446]
[1746367645408,0.00579225,1827.2,1827.1,8.699265]
[1746367646311,0.00579225,1827.2,1827.1,13.699265]
[1746367646711,0.00579225,1827.2,1827.1,8.699265]
[1746367649712,0.00579225,1827.2,1827.1,13.699265]
[1746367650213,3.69379225,1827.2,1827.1,8.699265]
[1746367662718,3.69379225,1827.2,1827.1,7.836765]
[1746367664114,3.69379225,1827.2,1827.1,11.044565]
[1746367668119,0.00579225,1827.2,1827.1,11.044565]
[1746367672420,2.25e-06,1827.2,1827.1,11.044565]
[1746367677031,2.25e-06,1827.2,1827.1,16.044565]
[1746367677223,0.8048,1827.8,1827.7,1.0941]
[1746367677528,8.316,1827.8,1827.7,7.8069]
[1746367677729,8.316,1827.8,1827.7,4.5991]
[1746367678226,12.004,1827.8,1827.7,4.5991]
[1746367678631,7.004,1827.8,1827.7,4.5991]
[1746367684631,7.004,1827.8,1827.7,1.0941]
[1746367684838,7.004,1827.8,1827.7,4.5991]
[1746367690231,7.004,1827.8,1827.7,1.0941]
[1746367690437,7.004,1827.8,1827.7,4.5991]
[1746367692953,13.20003446,1827.8,1827.7,4.5991]
[1746367693653,13.20003446,1827.8,1827.7,1.50720656]
[1746367699244,13.20003446,1827.8,1827.7,6.54421156]
[1746367699454,11.53943446,1827.8,1827.7,6.54421156]
[1746367699654,11.53943446,1827.8,1827.7,8.24411156]
[1746367700350,11.53943446,1827.8,1827.7,3.20710656]
[1746367700556,11.53943446,1827.8,1827.7,9.08531156]
[1746367701657,5.3434,1827.8,1827.7,9.08531156]
[1746367702149,3.688,1827.8,1827.7,12.29311156]
[1746367705260,9.82804134,1828.1,1828.0,1.09392]
[1746367705458,9.82804134,1828.1,1828.0,4.59592]
[1746367705856,9.82804134,1828.1,1828.0,6.25652]
[1746367706760,9.82804134,1828.1,1828.0,4.59592]
[1746367708054,9.82804134,1828.1,1828.0,3.502]
[1746367708254,9.82804134,1828.1,1828.0,4.59592]
[1746367708457,7.34224134,1828.1,1828.0,4.59592]
[1746367708657,7.34224134,1828.1,1828.0,7.09922]
[1746367708963,3.688,1828.1,1828.0,7.09922]
[1746367710662,3.688,1828.1,1828.0,7.50380269]
[1746367712556,1.04439,1828.1,1828.0,7.50380269]
[1746367712751,1.04439,1828.1,1828.0,12.54080769]
[1746367714866,1.90439,1828.1,1828.0,12.54080769]
[1746367715970,3.61409,1828.1,1828.0,12.54080769]
[1746367721269,3.61409,1828.1,1828.0,15.74860769]
[1746367722771,3.61409,1828.1,1828.0,14.91950769]
[1746367725374,1.90439,1828.1,1828.0,14.91950769]
[1746367725671,1.04439,1828.1,1828.0,14.91950769]
[1746367726071,3.58609,1828.1,1828.0,14.91950769]
[1746367726875,1.86879,1828.1,1828.0,14.91950769]
[1746367729775,3.53619,1828.1,1828.0,14.91950769]
[1746367731980,3.53619,1828.1,1828.0,8.20830269]
[1746367737782,1.86879,1828.1,1828.0,8.20830269]
[1746367738280,1.04439,1828.1,1828.0,13.24530769]
[1746367738477,1.04439,1828.1,1828.0,14.06830769]
[1746367742582,9.64024134,1828.6,1828.5,1.09362]
[1746367742783,4.48754134,1828.6,1828.5,4.59262]
[1746367742983,9.48754134,1828.6,1828.5,4.59262]
[1746367743185,13.17554134,1828.6,1828.5,4.59262]
[1746367743875,15.69154134,1828.6,1828.5,4.59262]
[1746367744078,10.69154134,1828.6,1828.5,4.59262]
[1746367747991,7.0373,1828.6,1828.5,4.59262]
[1746367750591,10.69154134,1828.6,1828.5,4.59262]
[1746367752293,10.69154134,1828.6,1828.5,3.499]
[1746367752793,10.69154134,1828.6,1828.5,4.59262]
[1746367754394,11.78510134,1828.6,1828.5,4.59262]
[1746367754691,10.69154134,1828.6,1828.5,4.59262]
[1746367755093,1.09367,1828.5,1828.4,1.09365]
[1746367755288,1.7242,1828.5,1828.4,4.59265]
[1746367756095,5.4122,1828.5,1828.4,4.59265]
[1746367756394,6.50582,1828.5,1828.4,4.59265]
[1746367756692,5.4122,1828.5,1828.4,4.59265]
[1746367756889,12.70162673,1828.5,1828.4,3.499]
[1746367757294,12.70162673,1828.5,1828.4,4.59268]
[1746367757594,12.70162673,1828.5,1828.4,3.499]
[1746367766999,7.20325784,1828.5,1828.4,3.499]
[1746367767501,1.09368,1828.4,1828.3,4.59074]